[Event "Elegant 1st Division League 2024"]
[Site "Dhaka"]
[Date "2024.07.16"]
[Round "6.16"]
[White "Saparya Ghosh"]
[Black "Md Nurul Islam, Mahin"]
[Result "1/2-1/2"]
[Annotator "NA RC"]
[ECO "D35"]
[WhiteElo "1833"]
[BlackElo "1833"]
[PlyCount "104"]
[EventDate "2024.07.10"]
[EventType "team-tourn"]
[EventCountry "BAN"]
[SourceTitle "playchess.com"]
[Source "ChessBase"]
[SourceQuality "1"]
[TimeControl "5400+30"]

1. d4 {[%emt 0:00:23]} d5 {[%emt 0:03:00]} 2. c4 {[%emt 0:00:06]} e6 {[%emt 0:02:23]} 3. Nc3 {[%emt 0:00:06]} Nf6 {[%emt 0:00:23]} 4. cxd5 {[%emt 0:00:06]} exd5 {[%emt 0:00:33]} 5. Bg5 {[%emt 0:00:06]} c6 {[%emt 0:00:22]} 6. e3 {[%emt 0:00:09]} Qb6 {[%emt 0:04:34]} 7. Qb3 {[%emt 0:19:25] D35: Queen's Gambit Declined: Exchange Variation.} Qxb3 {[%emt 0:07:42]} 8. axb3 {[%emt 0:00:15]} Nbd7 {[%emt 0:00:13]} 9. Bd3 {[%emt 0:00:34]} Bb4 {[%emt 0:00:17]} 10. Nge2 {[%emt 0:08:12]} b6 {[%emt 0:00:32]} 11. O-O {[%emt 0:01:33]} Bd6 {[%emt 0:00:42]} 12. f3 {[%emt 0:04:47]} O-O {[%emt 0:00:57]} 13. e4 {[%emt 0:02:35]} Bb4 {[%emt 0:01:03]} 14. e5 {[%emt 0:02:48]} h6 {[%emt 0:01:45]} 15. Bh4 {[%emt 0:04:30]} Nh7 {[%emt 0:00:48]} 16. Na2 {[%emt 0:04:51]} Bd2 {[%emt 0:00:27]} 17. Bf2 {[%emt 0:11:32]} Bg5 {[%emt 0:00:14]} 18. f4 {[%emt 0:04:48]} Be7 {[%emt 0:03:09]} 19. Rfc1 {[%emt 0:00:59]} Bb7 {[%emt 0:00:30]} 20. Nac3 {[%emt 0:06:49]} Rfd8 {[%emt 0:00:23]} 21. h3 {[%emt 0:04:07]} Nhf8 {[%emt 0:00:07]} 22. Bf5 {[%emt 0:07:16]} g6 {[%emt 0:00:31]} 23. Bd3 {[%emt 0:00:36]} a5 {[%emt 0:00:29]} 24. Ra2 {[%emt 0:06:11]} c5 {[%emt 0:00:35]} 25. Na4 {[%emt 0:02:04]} Rac8 {[%emt 0:00:50]} 26. Bb5 {[%emt 0:05:10]} cxd4 {[%emt 0:03:37]} 27. Raa1 $11 {[%emt 0:00:09]} ({But not} 27. Bxd4 Rxc1+ 28. Nxc1 Ne6 $15) (27. Rd1 $14) 27... Bc5 {[%emt 0:17:13]} 28. Bxd7 {[%emt 0:02:14]} Nxd7 {[%emt 0:00:53]} 29. Bxd4 {[%emt 0:01:00]} Bxd4+ {[%emt 0:10:20]} 30. Nxd4 {[%emt 0:00:03]} Rxc1+ {[%emt 0:02:03]} 31. Rxc1 {[%emt 0:00:01]} Rc8 {[%emt 0:00:18]} 32. Rxc8+ {[%emt 0:01:11]} Bxc8 {[%emt 0:00:18]} 33. Kf2 {[%emt 0:00:44]} Kf8 {[%emt 0:01:53]} 34. Ke3 {[%emt 0:00:17]} Bb7 {[%emt 0:01:04]} 35. g3 {[%emt 0:00:40]} Ke7 {[%emt 0:00:50]} 36. Kd3 {[%emt 0:01:40]} Nc5+ {[%emt 0:02:37]} 37. Ke3 {[%emt 0:00:11]} Nd7 {[%emt 0:01:49]} 38. Kd2 {[%emt 0:00:48]} h5 {[%emt 0:02:50]} 39. Ke3 {[%emt 0:00:29]} Ke8 {[%emt 0:04:33]} 40. Nb5 {[%emt 0:00:25]} Bc6 {[%emt 0:03:57]} 41. Nd6+ {[%emt 0:00:09]} Kf8 {[%emt 0:00:41]} 42. Kd4 {[%emt 0:00:52]} Bxa4 {[%emt 0:00:20]} 43. bxa4 {[%emt 0:00:05]} Nc5 {[%emt 0:00:20]} 44. Kxd5 {[%emt 0:00:54]} Nxa4 {[%emt 0:00:30]} 45. b3 {[%emt 0:00:09]} Nc3+ {[%emt 0:03:13]} 46. Kc4 {[%emt 0:00:50]} Ne2 {[%emt 0:00:31]} 47. Ne4 {[%emt 0:00:29]} Ke7 {[%emt 0:00:38]} 48. h4 {[%emt 0:00:37]} Ke6 {[%emt 0:00:45]} 49. Kd3 {[%emt 0:00:07]} Nc1+ {[%emt 0:00:44]} 50. Kc2 {[%emt 0:00:07]} Ne2 {[%emt 0:00:59]} 51. Kd3 {[%emt 0:00:27]} Nc1+ {[%emt 0:00:06]} 52. Kc2 {[%emt 0:00:55]} Ne2 {[%emt 0:00:09]} 1/2-1/2

[Event "Elegant 1st Division League 2024"]
[Site "Dhaka"]
[Date "2024.07.16"]
[Round "6.17"]
[White "Bhosale Shriraj"]
[Black "Md, Eftekhar Alam"]
[Result "1-0"]
[Annotator "RC"]
[ECO "A07"]
[WhiteElo "2043"]
[BlackElo "2006"]
[PlyCount "76"]
[EventDate "2024.07.10"]
[EventType "team-tourn"]
[EventCountry "BAN"]
[SourceTitle "playchess.com"]
[Source "ChessBase"]
[SourceQuality "1"]
[TimeControl "5400+30"]

1. Nf3 {[%emt 0:00:11]} d5 {[%emt 0:00:34]} 2. g3 {[%emt 0:00:07]} c6 {[%emt 0:00:33]} 3. Bg2 {[%emt 0:00:21]} Bf5 {[%emt 0:00:17]} 4. d3 {[%emt 0:01:41]} Nf6 {[%emt 0:00:26]} 5. Nh4 {[%emt 0:00:16]} Bg6 {[%emt 0:00:25]} 6. O-O {[%emt 0:00:23]} e6 {[%emt 0:02:02]} 7. b3 {[%emt 0:01:37]} Nbd7 {[%emt 0:00:47]} 8. Bb2 {[%emt 0:00:24]} Be7 {[%emt 0:00:21]} 9. Nd2 {[%emt 0:00:14]} O-O {[%emt 0:01:56]} 10. Nxg6 {[%emt 0:00:43]} hxg6 {[%emt 0:00:11]} 11. e4 {[%emt 0:00:05]} dxe4 {[%emt 0:03:40]} 12. dxe4 {[%emt 0:00:18]} e5 {[%emt 0:00:56]} 13. Qe2 {[%emt 0:04:06]} Qc7 {[%emt 0:01:56]} 14. Rfd1 {[%emt 0:05:00]} Rfe8 {[%emt 0:02:55]} 15. a4 {[%emt 0:00:47]} Rad8 {[%emt 0:07:27]} 16. h4 {[%emt 0:03:03]} Nc5 {[%emt 0:04:57]} 17. Nc4 {[%emt 0:02:06]} Rxd1+ {[%emt 0:01:50]} 18. Rxd1 {[%emt 0:00:08]} Bf8 {[%emt 0:00:14]} 19. f3 {[%emt 0:08:01]} Nh5 {[%emt 0:11:02]} 20. Kh2 {[%emt 0:01:31]} f5 {[%emt 0:06:26]} 21. exf5 {[%emt 0:01:35]} e4 {[%emt 0:01:26]} 22. f4 {[%emt 0:00:22]} Nxf4 {[%emt 0:03:07]} 23. gxf4 {[%emt 0:00:14]} Qxf4+ {[%emt 0:00:07]} 24. Kg1 {[%emt 0:00:18]} gxf5 {[%emt 0:02:35]} 25. Qh5 {[%emt 0:02:38]} Re6 {[%emt 0:03:51]} 26. Rf1 {[%emt 0:01:34]} Rh6 {[%emt 0:02:06]} 27. Qxf5 {[%emt 0:00:58]} Qxf5 {[%emt 0:00:40]} 28. Rf2 {[%emt 1:05:49]} Qf4 29. Rxf4 {[%emt 0:00:00]} Rxh4 {[%emt 0:00:34]} 30. Rf5 {[%emt 0:00:00]} b6 {[%emt 0:02:39]} 31. Bd4 {[%emt 0:00:00]} Rh6 {[%emt 0:00:24]} 32. Bf2 {[%emt 0:00:00]} g6 {[%emt 0:00:59]} 33. a5 {[%emt 0:00:00]} Be7 {[%emt 0:01:12]} 34. Rg5 {[%emt 0:00:00]} b5 {[%emt 0:02:17]} 35. Rg4 {[%emt 0:00:00]} Nb7 {[%emt 0:01:07]} 36. Nd2 {[%emt 0:00:00]} Nc5 {[%emt 0:00:22]} 37. Be3 {[%emt 0:00:00]} g5 {[%emt 0:00:30]} 38. Rxe4 {[%emt 0:00:00]} Nxe4 {[%emt 0:00:30]} 1-0

[Event "Elegant 1st Division League 2024"]
[Site "Dhaka"]
[Date "2024.07.16"]
[Round "6.18"]
[White "Mahindrakar Indrajeet"]
[Black "abzid, Rahman"]
[Result "1-0"]
[Annotator "RC"]
[ECO "B22"]
[WhiteElo "2129"]
[BlackElo "2037"]
[PlyCount "41"]
[EventDate "2024.07.10"]
[EventType "team-tourn"]
[EventCountry "BAN"]
[SourceTitle "playchess.com"]
[Source "ChessBase"]
[SourceQuality "1"]
[TimeControl "5400+30"]

1. e4 {[%emt 0:00:36]} c5 {[%emt 0:00:06]} 2. c3 {[%emt 0:04:17]} Nf6 {[%emt 0:00:25]} 3. e5 {[%emt 0:00:24]} Nd5 {[%emt 0:00:12]} 4. g3 {[%emt 0:03:23]} d6 {[%emt 0:06:07]} 5. exd6 {[%emt 0:00:18]} Qxd6 {[%emt 0:00:09]} 6. Bg2 {[%emt 0:00:20]} Nc6 {[%emt 0:00:28]} 7. Ne2 {[%emt 0:00:58]} h5 {[%emt 0:01:31]} 8. Na3 {[%emt 0:05:14]} Be6 {[%emt 0:04:00]} 9. d4 {[%emt 0:02:17]} cxd4 {[%emt 0:02:06]} 10. Nb5 {[%emt 0:01:17]} Qd7 {[%emt 0:02:48]} 11. Nexd4 {[%emt 0:20:31]} Nxd4 {[%emt 0:11:53]} 12. Nxd4 {[%emt 0:00:07]} Bh3 {[%emt 0:01:25]} 13. Bxh3 {[%emt 0:17:42]} Qxh3 {[%emt 0:00:56]} 14. Qe2 {[%emt 0:06:16]} Qg2 {[%emt 0:14:13]} 15. Qb5+ {[%emt 0:03:28]} Kd8 {[%emt 0:00:33]} 16. Rf1 {[%emt 0:00:44]} Qe4+ {[%emt 0:00:52]} 17. Be3 {[%emt 0:01:39]} Nxe3 {[%emt 0:00:56]} 18. fxe3 {[%emt 0:00:24]} Qxe3+ {[%emt 0:02:01]} 19. Ne2 {[%emt 0:00:44]} Kc7 {[%emt 0:08:21]} 20. Rd1 {[%emt 0:03:17]} Rd8 {[%emt 0:01:44]} 21. Qc4+ {[%emt 0:00:16]} 1-0

[Event "Elegant 1st Division League 2024"]
[Site "Dhaka"]
[Date "2024.07.16"]
[Round "6.19"]
[White "Tajane Ganesh"]
[Black "Majumder Shrayan"]
[Result "0-1"]
[Annotator "RC"]
[ECO "C55"]
[WhiteElo "1772"]
[BlackElo "2083"]
[PlyCount "50"]
[EventDate "2024.07.10"]
[EventType "team-tourn"]
[EventCountry "BAN"]
[SourceTitle "playchess.com"]
[Source "ChessBase"]
[SourceQuality "1"]
[TimeControl "5400+30"]

1. e4 {[%emt 0:01:35]} e5 {[%emt 0:00:58]} 2. Nf3 {[%emt 0:00:15]} Nc6 {[%emt 0:00:08]} 3. Bc4 {[%emt 0:00:07]} Nf6 {[%emt 0:00:25]} 4. d3 {[%emt 0:01:11]} h6 {[%emt 0:00:28]} 5. c3 {[%emt 0:03:08]} d6 {[%emt 0:03:26]} 6. Bb3 {[%emt 0:01:06]} g6 {[%emt 0:00:43]} 7. h3 {[%emt 0:02:28]} Bg7 {[%emt 0:01:01]} 8. Be3 {[%emt 0:04:55]} Qe7 {[%emt 0:03:26]} 9. Qd2 {[%emt 0:08:04]} Be6 {[%emt 0:02:32]} 10. Bxe6 {[%emt 0:00:30]} Qxe6 {[%emt 0:00:30]} 11. c4 {[%emt 0:00:36]} Nd7 {[%emt 0:08:18]} 12. Nc3 {[%emt 0:17:13]} f5 {[%emt 0:04:00]} 13. Nd5 {[%emt 0:01:55]} Rc8 {[%emt 0:04:32]} 14. g3 {[%emt 0:04:56]} g5 {[%emt 0:05:10]} 15. exf5 {[%emt 0:12:40]} Qxf5 {[%emt 0:00:45]} 16. Qe2 {[%emt 0:01:48]} e4 {[%emt 0:24:10]} 17. dxe4 {[%emt 0:02:45]} Qxe4 {[%emt 0:00:10]} 18. O-O {[%emt 0:01:25]} O-O {[%emt 0:00:46]} 19. Nd2 {[%emt 0:05:01]} Qe6 {[%emt 0:04:30]} 20. Kg2 {[%emt 0:02:03]} Nd4 {[%emt 0:06:13]} 21. Qd3 {[%emt 0:04:30]} Nc5 {[%emt 0:01:17]} 22. Qb1 {[%emt 0:02:36]} c6 {[%emt 0:02:14]} 23. Nc3 {[%emt 0:03:28]} b5 {[%emt 0:10:21]} 24. b4 {[%emt 0:08:37]} Nf5 {[%emt 0:03:02]} 25. Qc2 {[%emt 0:09:25]} Qxe3 {[%emt 0:01:17]} 0-1

[Event "Elegant 1st Division League 2024"]
[Site "Dhaka"]
[Date "2024.07.16"]
[Round "6.20"]
[White "Md, Azmaeen Parvez Sayor"]
[Black "Bhuiyan, Golam Mostafa"]
[Result "1/2-1/2"]
[Annotator "RC"]
[ECO "B85"]
[WhiteElo "1969"]
[BlackElo "2078"]
[PlyCount "36"]
[EventDate "2024.07.10"]
[EventType "team-tourn"]
[EventCountry "BAN"]
[SourceTitle "playchess.com"]
[Source "ChessBase"]
[SourceQuality "1"]
[TimeControl "5400+30"]

1. e4 {[%emt 0:00:08]} c5 {[%emt 0:00:01]} 2. Nf3 {[%emt 0:00:09]} d6 {[%emt 0:00:01]} 3. d4 {[%emt 0:00:20]} cxd4 {[%emt 0:00:02]} 4. Nxd4 {[%emt 0:00:07]} Nf6 {[%emt 0:00:10]} 5. Nc3 {[%emt 0:00:08]} a6 {[%emt 0:01:53]} 6. Be2 {[%emt 0:00:06]} e6 {[%emt 0:00:46]} 7. a4 {[%emt 0:02:45]} Nc6 {[%emt 0:00:25]} 8. Be3 {[%emt 0:00:43]} Qc7 {[%emt 0:01:23]} 9. O-O {[%emt 0:01:27]} Be7 {[%emt 0:00:14]} 10. f4 {[%emt 0:00:44]} O-O {[%emt 0:00:17]} 11. Nb3 {[%emt 0:00:30]} b6 {[%emt 0:00:33]} 12. Bf3 {[%emt 0:00:41]} Rb8 {[%emt 0:00:20]} 13. Qe2 {[%emt 0:03:19]} Nd7 {[%emt 0:06:12]} 14. Rad1 {[%emt 0:06:21]} Nc5 {[%emt 0:03:32]} 15. Nd4 {[%emt 0:00:30]} Bd7 {[%emt 0:00:30]} 16. b3 {[%emt 0:00:30]} b5 {[%emt 0:00:30]} 17. axb5 {[%emt 0:15:12]} Nxd4 {[%emt 1:22:11]} 18. Bxd4 {[%emt 0:00:15]} axb5 {[%emt 0:00:00]} 1/2-1/2

[Event "Elegant 1st Division League 2024"]
[Site "Dhaka"]
[Date "2024.07.16"]
[Round "6.21"]
[White "Mohammad, Shameem"]
[Black "Sajib, Das"]
[Result "1/2-1/2"]
[Annotator "ChessBase"]
[ECO "E01"]
[WhiteElo "1951"]
[BlackElo "1894"]
[PlyCount "134"]
[EventDate "2024.07.10"]
[EventType "team-tourn"]
[EventCountry "BAN"]
[SourceTitle "playchess.com"]
[Source "ChessBase"]
[SourceQuality "1"]
[TimeControl "5400+30"]

1. d4 {[%emt 0:00:06]} d5 {[%emt 0:00:41]} 2. g3 {[%emt 0:00:18]} e6 {[%emt 0:00:12]} 3. c4 {[%emt 0:00:26]} Nf6 {[%emt 0:00:13]} 4. Bg2 {[%emt 0:00:22]} c6 {[%emt 0:00:08]} 5. Nf3 {[%emt 0:00:06]} a6 {[%emt 0:00:49]} 6. O-O {[%emt 0:00:57]} dxc4 {[%emt 0:00:40]} 7. Ne5 {[%emt 0:00:10]} Nbd7 {[%emt 0:01:58]} 8. Nxc4 {[%emt 0:00:24]} Be7 {[%emt 0:00:43]} 9. Bf4 {[%emt 0:01:25]} O-O {[%emt 0:00:22]} 10. Nc3 {[%emt 0:05:49]} Nd5 {[%emt 0:01:37]} 11. Bd6 {[%emt 0:01:12]} Bxd6 {[%emt 0:03:27]} 12. Nxd6 {[%emt 0:00:16]} N7f6 {[%emt 0:02:31]} 13. Nxc8 {[%emt 0:04:43]} Nxc3 {[%emt 0:01:23]} 14. bxc3 {[%emt 0:00:26]} Qxc8 {[%emt 0:00:24]} 15. Qb3 {[%emt 0:00:38]} Qc7 {[%emt 0:03:33]} 16. Rab1 {[%emt 0:02:12]} b5 {[%emt 0:00:40]} 17. a4 {[%emt 0:03:15]} Rab8 {[%emt 0:01:17]} 18. e4 {[%emt 0:06:00]} Rfd8 {[%emt 0:03:24]} 19. Rfd1 {[%emt 0:12:19]} h5 {[%emt 0:04:39]} 20. h4 {[%emt 0:01:38]} Qe7 {[%emt 0:06:31]} 21. e5 {[%emt 0:10:40]} Nd5 {[%emt 0:02:04]} 22. axb5 {[%emt 0:00:06]} cxb5 {[%emt 0:05:20]} 23. Ra1 {[%emt 0:02:43]} Rb6 {[%emt 0:05:02]} 24. c4 {[%emt 0:02:57]} bxc4 {[%emt 0:04:59]} 25. Qxc4 {[%emt 0:00:04]} Qb7 {[%emt 0:00:39]} 26. Rdc1 {[%emt 0:10:13]} Rb5 {[%emt 0:05:14]} 27. Bxd5 {[%emt 0:07:31]} Rdxd5 {[%emt 0:01:50]} 28. Qc8+ {[%emt 0:00:23]} Kh7 {[%emt 0:06:01]} 29. Qxb7 {[%emt 0:04:27]} Rxb7 {[%emt 0:00:10]} 30. Rxa6 {[%emt 0:06:51]} Rxd4 {[%emt 0:00:14]} 31. Rac6 {[%emt 0:05:42]} Rb5 {[%emt 0:06:24]} 32. R6c5 {[%emt 0:02:27]} Rd5 {[%emt 0:00:44]} 33. Rxb5 {[%emt 0:00:51]} Rxb5 {[%emt 0:00:12]} 34. Rc7 {[%emt 0:00:47]} Kg6 {[%emt 0:00:10]} 35. f4 {[%emt 0:00:14]} Rb2 {[%emt 0:00:17]} 36. Kf1 {[%emt 0:00:21]} f6 {[%emt 0:00:48]} 37. exf6 {[%emt 0:01:44]} gxf6 {[%emt 0:02:19]} 38. Rc5 {[%emt 0:00:06]} Rd2 {[%emt 0:00:49]} 39. Rb5 {[%emt 0:04:25]} Rd5 {[%emt 0:00:27]} 40. Rb8 {[%emt 0:00:17]} Kf5 {[%emt 0:02:44]} 41. Kf2 {[%emt 0:00:15]} Rd3 {[%emt 0:03:40]} 42. Rb7 {[%emt 0:01:45]} e5 {[%emt 0:01:11]} 43. fxe5 {[%emt 0:00:25]} fxe5 {[%emt 0:00:54]} 44. Rh7 {[%emt 0:00:41]} Ke4 {[%emt 0:00:37]} 45. Rxh5 {[%emt 0:00:26]} Rd2+ {[%emt 0:00:15]} 46. Ke1 {[%emt 0:00:34]} Rg2 {[%emt 0:00:35]} 47. Rg5 {[%emt 0:00:48]} Rh2 {[%emt 0:02:29]} 48. Kf1 {[%emt 0:00:56]} Kd4 {[%emt 0:00:50]} 49. Kg1 {[%emt 0:00:50]} Ra2 {[%emt 0:00:22]} 50. Rg8 {[%emt 0:00:20]} e4 {[%emt 0:00:24]} 51. Rd8+ {[%emt 0:00:41]} Ke3 {[%emt 0:00:36]} 52. Rf8 {[%emt 0:00:38]} Kd3 {[%emt 0:00:42]} 53. Rd8+ {[%emt 0:01:10]} Ke3 {[%emt 0:02:39]} 54. Rf8 {[%emt 0:00:08]} Kd3 {[%emt 0:04:24]} 55. Rd8+ {[%emt 0:00:08]} Ke2 {[%emt 0:00:42]} 56. Kg2 {[%emt 0:01:03]} Ke1+ {[%emt 0:00:39]} 57. Kh3 {[%emt 0:00:30]} e3 {[%emt 0:02:10]} 58. h5 {[%emt 0:01:00]} e2 {[%emt 0:02:57]} 59. Re8 {[%emt 0:00:24]} Ra5 {[%emt 0:00:52]} 60. g4 {[%emt 0:00:53]} Kf2 {[%emt 0:00:20]} 61. Rf8+ {[%emt 0:00:11]} Ke3 {[%emt 0:00:19]} 62. Re8+ {[%emt 0:00:07]} Kf3 {[%emt 0:00:08]} 63. Kh4 {[%emt 0:01:40]} Ra4 {[%emt 0:00:57]} 64. Rxe2 {[%emt 0:00:38]} Rxg4+ {[%emt 0:05:36]} 65. Kh3 {[%emt 0:00:10]} Rg5 {[%emt 0:00:43]} 66. Kh4 {[%emt 0:00:07]} Rxh5+ {[%emt 0:02:26]} 67. Kxh5 {[%emt 0:00:06]} Kxe2 {[%emt 0:00:04]} 1/2-1/2

[Event "Elegant 1st Division League 2024"]
[Site "Dhaka"]
[Date "2024.07.16"]
[Round "6.22"]
[White "Mohammad, Shakil"]
[Black "Vrashank Chouhan"]
[Result "1/2-1/2"]
[Annotator "RC"]
[ECO "D36"]
[WhiteElo "1882"]
[BlackElo "2209"]
[PlyCount "106"]
[EventDate "2024.07.10"]
[EventType "team-tourn"]
[EventCountry "BAN"]
[SourceTitle "playchess.com"]
[Source "ChessBase"]
[SourceQuality "1"]
[TimeControl "5400+30"]

1. d4 {[%emt 0:00:11]} Nf6 {[%emt 0:00:08]} 2. c4 {[%emt 0:00:12]} e6 {[%emt 0:00:07]} 3. Nc3 {[%emt 0:00:09]} d5 {[%emt 0:00:28]} 4. cxd5 {[%emt 0:00:17]} exd5 {[%emt 0:00:06]} 5. Bg5 {[%emt 0:00:10]} Be7 {[%emt 0:00:05]} 6. e3 {[%emt 0:00:06]} O-O {[%emt 0:00:05]} 7. Bd3 {[%emt 0:00:18]} c6 {[%emt 0:00:05]} 8. Qc2 {[%emt 0:00:15]} h6 {[%emt 0:00:06]} 9. Bh4 {[%emt 0:00:08]} a5 {[%emt 0:00:05]} 10. Nge2 {[%emt 0:00:35]} Na6 {[%emt 0:00:07]} 11. a3 {[%emt 0:00:12]} Re8 {[%emt 0:01:04]} 12. O-O {[%emt 0:02:12]} Nc7 {[%emt 0:02:19]} 13. f3 {[%emt 0:01:52]} Ne6 {[%emt 0:01:11]} 14. Kh1 {[%emt 0:04:23]} b5 {[%emt 0:05:02]} 15. Bf2 {[%emt 0:01:45]} Bb7 {[%emt 0:09:18]} 16. e4 {[%emt 0:08:26]} dxe4 {[%emt 0:02:12]} 17. fxe4 {[%emt 0:01:05]} Rc8 {[%emt 0:10:52]} 18. e5 {[%emt 0:10:45]} Ng4 {[%emt 0:06:11]} 19. Bg1 {[%emt 0:00:53]} b4 {[%emt 0:00:05]} 20. axb4 {[%emt 0:09:16]} axb4 {[%emt 0:00:26]} 21. Bh7+ {[%emt 0:09:09]} Kh8 {[%emt 0:02:12]} 22. Rxf7 {[%emt 0:01:12]} bxc3 {[%emt 0:12:41]} 23. Bf5 {[%emt 0:02:20]} Ng5 {[%emt 0:06:08]} 24. Rxe7 {[%emt 0:06:02]} Qxe7 {[%emt 0:00:32]} 25. Bxg4 {[%emt 0:00:11]} cxb2 {[%emt 0:02:21]} 26. Qxb2 {[%emt 0:00:46]} Ra8 {[%emt 0:05:19]} 27. Nf4 {[%emt 0:02:16]} Kg8 {[%emt 0:05:12]} 28. h4 {[%emt 0:03:50]} Ne4 {[%emt 0:01:33]} 29. Qb3+ {[%emt 0:04:25]} Qf7 {[%emt 0:03:34]} 30. Rxa8 {[%emt 0:07:47]} Bxa8 {[%emt 0:02:37]} 31. Be6 {[%emt 0:00:32]} Rxe6 {[%emt 0:00:29]} 32. Qxe6 {[%emt 0:00:04]} Qxe6 {[%emt 0:04:10]} 33. Nxe6 {[%emt 0:00:02]} Kf7 {[%emt 0:00:16]} 34. Nf4 {[%emt 0:01:27]} g5 {[%emt 0:01:29]} 35. hxg5 {[%emt 0:00:35]} hxg5 {[%emt 0:00:04]} 36. Nd3 {[%emt 0:02:01]} Bb7 {[%emt 0:02:08]} 37. Be3 {[%emt 0:03:59]} Ke6 {[%emt 0:04:02]} 38. Nb4 {[%emt 0:01:36]} c5 {[%emt 0:06:03]} 39. dxc5 {[%emt 0:00:47]} Kxe5 {[%emt 0:00:04]} 40. Kg1 {[%emt 0:02:22]} g4 {[%emt 0:02:51]} 41. Kf1 {[%emt 0:01:17]} Ng3+ {[%emt 0:01:17]} 42. Kf2 {[%emt 0:00:34]} Ne4+ {[%emt 0:02:18]} 43. Ke1 {[%emt 0:00:58]} Nxc5 {[%emt 0:00:52]} 44. Bxc5 {[%emt 0:00:16]} Bxg2 {[%emt 0:00:04]} 45. Kf2 {[%emt 0:01:25]} Bf3 {[%emt 0:00:04]} 46. Ba7 {[%emt 0:00:21]} Kf4 {[%emt 0:00:30]} 47. Bb8+ {[%emt 0:00:15]} Ke4 {[%emt 0:00:06]} 48. Nc2 {[%emt 0:00:21]} Bd1 {[%emt 0:00:21]} 49. Ne1 {[%emt 0:00:11]} Bf3 {[%emt 0:00:04]} 50. Bc7 {[%emt 0:00:11]} Bd1 {[%emt 0:00:22]} 51. Bb6 {[%emt 0:00:08]} Bf3 {[%emt 0:00:06]} 52. Be3 {[%emt 0:00:08]} g3+ {[%emt 0:00:10]} 53. Kxg3 {[%emt 0:00:03]} Kxe3 {[%emt 0:00:05]} 1/2-1/2

[Event "Elegant 1st Division League 2024"]
[Site "Dhaka"]
[Date "2024.07.16"]
[Round "6.23"]
[White "Tutul, Dhar"]
[Black "Hrishin, Talukder"]
[Result "0-1"]
[Annotator "RC"]
[ECO "A57"]
[WhiteElo "2008"]
[BlackElo "1982"]
[PlyCount "68"]
[EventDate "2024.07.10"]
[EventType "team-tourn"]
[EventCountry "BAN"]
[SourceTitle "playchess.com"]
[Source "ChessBase"]
[SourceQuality "1"]
[TimeControl "5400+30"]

1. d4 {[%emt 0:00:03]} Nf6 {[%emt 0:00:37]} 2. c4 {[%emt 0:00:12]} c5 {[%emt 0:00:23]} 3. d5 {[%emt 0:00:09]} b5 {[%emt 0:00:27]} 4. cxb5 {[%emt 0:00:10]} a6 {[%emt 0:00:05]} 5. Nc3 {[%emt 0:00:51]} axb5 {[%emt 0:02:48]} 6. Nxb5 {[%emt 0:00:05]} Bb7 {[%emt 0:00:36]} 7. Nc3 {[%emt 0:00:15]} e6 {[%emt 0:02:13]} 8. dxe6 {[%emt 0:12:20]} fxe6 {[%emt 0:00:23]} 9. Bf4 {[%emt 0:00:07]} d5 {[%emt 0:01:04]} 10. e3 {[%emt 0:00:11]} Bd6 {[%emt 0:07:26]} 11. Bg3 {[%emt 0:07:52]} Nc6 {[%emt 0:07:58]} 12. Qb3 {[%emt 0:05:15]} Rb8 {[%emt 0:19:42]} 13. Nf3 {[%emt 0:09:17]} O-O {[%emt 0:03:04]} 14. Nb5 {[%emt 0:00:39]} c4 {[%emt 0:05:40]} 15. Qc2 {[%emt 0:03:00]} Qa5+ {[%emt 0:03:29]} 16. Nc3 {[%emt 0:00:54]} Bxg3 {[%emt 0:07:10]} 17. hxg3 {[%emt 0:00:02]} Ne4 {[%emt 0:00:18]} 18. Bxc4 {[%emt 0:23:47]} Nb4 {[%emt 0:02:05]} 19. Qb1 {[%emt 0:01:23]} dxc4 {[%emt 0:00:31]} 20. Nxe4 {[%emt 0:00:11]} Nd3+ {[%emt 0:00:38]} 21. Ke2 {[%emt 0:00:42]} Bxe4 {[%emt 0:00:50]} 22. b3 {[%emt 0:01:02]} Nf4+ {[%emt 0:00:50]} 23. gxf4 {[%emt 0:00:02]} Bxb1 {[%emt 0:02:14]} 24. Rhxb1 {[%emt 0:00:01]} Rfd8 {[%emt 0:01:56]} 25. Nd4 {[%emt 0:00:35]} Qh5+ {[%emt 0:01:23]} 26. f3 {[%emt 0:00:20]} Rxd4 {[%emt 0:01:25]} 27. exd4 {[%emt 0:00:03]} Qf5 {[%emt 0:00:46]} 28. b4 {[%emt 0:02:50]} Qd3+ {[%emt 0:00:36]} 29. Kf2 {[%emt 0:00:47]} Qxd4+ {[%emt 0:00:17]} 30. Kg3 {[%emt 0:00:00]} e5 {[%emt 0:00:21]} 31. fxe5 {[%emt 0:00:07]} Rb6 {[%emt 0:01:03]} 32. f4 {[%emt 0:04:15]} Qe3+ {[%emt 0:00:27]} 33. Kg4 {[%emt 0:00:29]} Rg6+ {[%emt 0:28:15]} 34. Kh5 {[%emt 0:01:55]} Qe2+ {[%emt 0:00:00]} 0-1